[Event "Live Chess"]
[Site "Chess.com"]
[Date "2023.05.20"]
[Round "-"]
[White "LodeshChess"]
[Black "rmethornhill"]
[Result "1-0"]
[WhiteElo "1041"]
[BlackElo "1170"]
[TimeControl "300"]
[EndTime "12:55:29 PDT"]
[Termination "LodeshChess won on time"]

1. e4 {[%clk 0:04:59.5]} 1... c5 {[%clk 0:04:58.5]} 2. Nf3 {[%clk 0:04:58]} 2...
d6 {[%clk 0:04:57.5]} 3. d4 {[%clk 0:04:56.7]} 3... cxd4 {[%clk 0:04:56.7]} 4.
Qxd4 {[%clk 0:04:56.1]} 4... Nc6 {[%clk 0:04:54.4]} 5. Qe3 {[%clk 0:04:55.7]}
5... g6 {[%clk 0:04:36.2]} 6. Qc3 {[%clk 0:04:45.9]} 6... Nf6 {[%clk 0:04:35.1]}
7. Bb5 {[%clk 0:04:42.7]} 7... Bd7 {[%clk 0:04:32.3]} 8. Nbd2 {[%clk 0:04:35.6]}
8... Bg7 {[%clk 0:04:30.7]} 9. O-O {[%clk 0:04:31.5]} 9... O-O {[%clk
0:04:29.6]} 10. Rb1 {[%clk 0:04:28.7]} 10... Nxe4 {[%clk 0:04:28.3]} 11. Qe3
{[%clk 0:04:19.6]} 11... Nxd2 {[%clk 0:04:21.1]} 12. Qxd2 {[%clk 0:04:18.6]}
12... a6 {[%clk 0:04:20.3]} 13. Ba4 {[%clk 0:04:10.8]} 13... b5 {[%clk
0:04:18.3]} 14. Bb3 {[%clk 0:04:10.2]} 14... Rc8 {[%clk 0:04:12.8]} 15. a3
{[%clk 0:04:07.7]} 15... Qb6 {[%clk 0:03:52.7]} 16. Qf4 {[%clk 0:03:44.5]} 16...
Be6 {[%clk 0:03:28.3]} 17. Bxe6 {[%clk 0:03:33.2]} 17... fxe6 {[%clk 0:03:27.1]}
18. Qh4 {[%clk 0:03:32.7]} 18... Bf6 {[%clk 0:03:03.5]} 19. Bg5 {[%clk
0:03:21.9]} 19... Bxg5 {[%clk 0:02:54.9]} 20. Qxg5 {[%clk 0:03:21]} 20... Rf5
{[%clk 0:02:46.2]} 21. Qh4 {[%clk 0:03:02.6]} 21... Rcf8 {[%clk 0:02:42.1]} 22.
Ng5 {[%clk 0:02:43]} 22... h5 {[%clk 0:02:31.1]} 23. Nxe6 {[%clk 0:02:39.1]}
23... R8f6 {[%clk 0:02:08.7]} 24. Nf4 {[%clk 0:02:28.7]} 24... Rxf4 {[%clk
0:02:04.8]} 25. Qg3 {[%clk 0:02:23.6]} 25... Rg4 {[%clk 0:01:50.2]} 26. Qb3+
{[%clk 0:02:12.5]} 26... Kg7 {[%clk 0:01:34.7]} 27. Rbe1 {[%clk 0:01:51.7]}
27... Ne5 {[%clk 0:01:20.4]} 28. h3 {[%clk 0:01:27.4]} 28... Rg5 {[%clk
0:01:13.3]} 29. a4 {[%clk 0:01:06.2]} 29... Nf3+ {[%clk 0:01:09.1]} 30. Kh1
{[%clk 0:01:03.8]} 30... Nxe1 {[%clk 0:01:07.5]} 31. Rxe1 {[%clk 0:01:03.5]}
31... Rf7 {[%clk 0:00:55.9]} 32. Qc3+ {[%clk 0:00:58.6]} 32... Kg8 {[%clk
0:00:48.6]} 33. Qb3 {[%clk 0:00:51.8]} 33... Qxf2 {[%clk 0:00:41]} 34. Rg1
{[%clk 0:00:41.2]} 34... Kf8 {[%clk 0:00:19.5]} 35. axb5 {[%clk 0:00:36.6]}
35... Qg3 {[%clk 0:00:10.2]} 36. Qxg3 {[%clk 0:00:22.1]} 36... Rxg3 {[%clk
0:00:08.1]} 37. bxa6 {[%clk 0:00:21.6]} 37... e5 {[%clk 0:00:07.1]} 38. Ra1
{[%clk 0:00:18.3]} 38... Ra7 {[%clk 0:00:04.5]} 39. b4 {[%clk 0:00:16.3]} 1-0

[Event "Live Chess"]
[Site "Chess.com"]
[Date "2023.05.20"]
[Round "-"]
[White "Woodpusher500"]
[Black "Richardallis"]
[Result "0-1"]
[WhiteElo "1324"]
[BlackElo "1780"]
[TimeControl "300"]
[EndTime "12:55:38 PDT"]
[Termination "Richardallis won by resignation"]

1. e4 {[%clk 0:04:57.3]} 1... d5 {[%clk 0:04:58.5]} 2. exd5 {[%clk 0:04:54.5]}
2... Nf6 {[%clk 0:04:57.9]} 3. d4 {[%clk 0:04:45.9]} 3... Nxd5 {[%clk
0:04:57.2]} 4. c4 {[%clk 0:04:43.3]} 4... Nf6 {[%clk 0:04:56.1]} 5. Nf3 {[%clk
0:04:37]} 5... c6 {[%clk 0:04:55.2]} 6. Nc3 {[%clk 0:04:32.1]} 6... Bg4 {[%clk
0:04:54.3]} 7. Be2 {[%clk 0:04:26.1]} 7... e6 {[%clk 0:04:52.9]} 8. O-O {[%clk
0:04:16.1]} 8... Bd6 {[%clk 0:04:51.4]} 9. Be3 {[%clk 0:04:00.7]} 9... Nbd7
{[%clk 0:04:49.4]} 10. Qd2 {[%clk 0:03:50.1]} 10... O-O {[%clk 0:04:46]} 11. Bf4
{[%clk 0:03:46.2]} 11... Bxf4 {[%clk 0:04:44.3]} 12. Qxf4 {[%clk 0:03:42.3]}
12... Re8 {[%clk 0:04:42.7]} 13. Rae1 {[%clk 0:03:32.9]} 13... h6 {[%clk
0:04:37.9]} 14. Bd3 {[%clk 0:03:25.2]} 14... c5 {[%clk 0:04:30.8]} 15. h3 {[%clk
0:03:22.6]} 15... Bxf3 {[%clk 0:04:29.5]} 16. Qxf3 {[%clk 0:03:18.6]} 16... cxd4
{[%clk 0:04:28.6]} 17. Nb5 {[%clk 0:03:07.5]} 17... Qb6 {[%clk 0:04:20.7]} 18.
Re2 {[%clk 0:02:57.7]} 18... a6 {[%clk 0:04:17.8]} 19. Na3 {[%clk 0:02:44.8]}
19... e5 {[%clk 0:04:16.6]} 20. Rfe1 {[%clk 0:02:35.1]} 20... Qc6 {[%clk
0:04:14.4]} 21. Qxc6 {[%clk 0:02:23.9]} 21... bxc6 {[%clk 0:04:13.7]} 22. b3
{[%clk 0:02:22.1]} 22... c5 {[%clk 0:04:11.9]} 23. f4 {[%clk 0:02:13.2]} 23...
exf4 {[%clk 0:04:07.8]} 24. Rxe8+ {[%clk 0:02:08.6]} 24... Rxe8 {[%clk
0:04:07.1]} 25. Rxe8+ {[%clk 0:02:01.4]} 25... Nxe8 {[%clk 0:04:06.4]} 26. Nc2
{[%clk 0:01:54]} 26... Nd6 {[%clk 0:04:02.5]} 27. Ne1 {[%clk 0:01:50.9]} 27...
Ne5 {[%clk 0:04:00.1]} 28. Nf3 {[%clk 0:01:43.6]} 28... Nxd3 {[%clk 0:03:58.4]}
29. Kf1 {[%clk 0:01:37.4]} 29... f6 {[%clk 0:03:56.4]} 30. Ke2 {[%clk
0:01:32.2]} 30... Ne5 {[%clk 0:03:55.9]} 31. Nxe5 {[%clk 0:01:28]} 31... fxe5
{[%clk 0:03:54.1]} 32. Kf3 {[%clk 0:01:22.4]} 32... g5 {[%clk 0:03:53.3]} 33. g3
{[%clk 0:01:16.8]} 33... e4+ {[%clk 0:03:50.1]} 34. Ke2 {[%clk 0:01:13.4]} 34...
f3+ {[%clk 0:03:49.5]} 35. Kd2 {[%clk 0:01:05.3]} 35... f2 {[%clk 0:03:47.8]}
36. Ke2 {[%clk 0:01:03.5]} 36... e3 {[%clk 0:03:47.3]} 37. g4 {[%clk 0:01:00.5]}
37... Ne4 {[%clk 0:03:44.5]} 38. a3 {[%clk 0:00:49.5]} 38... Ng3+ {[%clk
0:03:43]} 39. Kd1 {[%clk 0:00:44.3]} 39... f1=Q+ {[%clk 0:03:40.9]} 0-1

[Event "Live Chess"]
[Site "Chess.com"]
[Date "2023.05.20"]
[Round "-"]
[White "PaulHumphreys"]
[Black "viktorskliarov"]
[Result "0-1"]
[WhiteElo "1363"]
[BlackElo "2653"]
[TimeControl "300"]
[EndTime "12:55:39 PDT"]
[Termination "viktorskliarov won by resignation"]

1. d4 {[%clk 0:04:55.7]} 1... Nf6 {[%clk 0:04:56.6]} 2. Nc3 {[%clk 0:04:52.5]}
2... c5 {[%clk 0:04:48.8]} 3. dxc5 {[%clk 0:04:48.5]} 3... Na6 {[%clk
0:04:43.5]} 4. Bf4 {[%clk 0:04:39.2]} 4... Nxc5 {[%clk 0:04:40.2]} 5. e3 {[%clk
0:04:34.7]} 5... d6 {[%clk 0:04:28.5]} 6. Nb5 {[%clk 0:04:20.7]} 6... a6 {[%clk
0:04:21.3]} 7. Nc7+ {[%clk 0:04:14.4]} 7... Qxc7 {[%clk 0:04:18.8]} 8. Nf3
{[%clk 0:03:36.1]} 8... e5 {[%clk 0:04:15.2]} 9. Bg5 {[%clk 0:03:34.3]} 9... Be7
{[%clk 0:04:13.8]} 10. Bc4 {[%clk 0:03:31]} 10... Nce4 {[%clk 0:04:10.3]} 11.
Bxf6 {[%clk 0:03:23.2]} 11... Qxc4 {[%clk 0:04:06.5]} 12. Bxe7 {[%clk
0:03:18.7]} 12... Kxe7 {[%clk 0:04:04.7]} 0-1

[Event "Live Chess"]
[Site "Chess.com"]
[Date "2023.05.20"]
[Round "-"]
[White "JoshMcK"]
[Black "AdamOwls"]
[Result "1-0"]
[WhiteElo "1570"]
[BlackElo "1932"]
[TimeControl "300"]
[EndTime "12:55:39 PDT"]
[Termination "JoshMcK won - game abandoned"]

1. e4 {[%clk 0:04:59.5]} 1... c5 {[%clk 0:04:56.6]} 2. c3 {[%clk 0:04:58.1]}
2... d5 {[%clk 0:04:55.1]} 3. exd5 {[%clk 0:04:56.9]} 3... Nf6 {[%clk
0:04:54.6]} 4. Nf3 {[%clk 0:04:52.3]} 4... Nxd5 {[%clk 0:04:53.5]} 5. d4 {[%clk
0:04:51.6]} 5... cxd4 {[%clk 0:04:50.7]} 6. Nxd4 {[%clk 0:04:48.7]} 6... e6
{[%clk 0:04:46.1]} 7. Bc4 {[%clk 0:04:45.1]} 7... Nc7 {[%clk 0:04:42.4]} 8. O-O
{[%clk 0:04:42]} 8... Be7 {[%clk 0:04:40.9]} 9. Bb5+ {[%clk 0:04:32.9]} 9... Bd7
{[%clk 0:04:37.6]} 10. Bxd7+ {[%clk 0:04:27.7]} 10... Qxd7 {[%clk 0:04:36.7]}
11. Bf4 {[%clk 0:04:27]} 11... O-O {[%clk 0:04:31.9]} 12. Qg4 {[%clk 0:04:20.6]}
1-0

[Event "Live Chess"]
[Site "Chess.com"]
[Date "2023.05.20"]
[Round "-"]
[White "MarkLim1"]
[Black "CheckThis4"]
[Result "0-1"]
[WhiteElo "1663"]
[BlackElo "2550"]
[TimeControl "300"]
[EndTime "12:55:44 PDT"]
[Termination "CheckThis4 won by resignation"]

1. d4 {[%clk 0:04:58.5]} 1... Nf6 {[%clk 0:04:56.8]} 2. Nf3 {[%clk 0:04:57.7]}
2... c5 {[%clk 0:04:55.2]} 3. d5 {[%clk 0:04:56.8]} 3... b5 {[%clk 0:04:54.4]}
4. c3 {[%clk 0:04:55.4]} 4... Bb7 {[%clk 0:04:53.4]} 5. e4 {[%clk 0:04:53.9]}
5... Nxe4 {[%clk 0:04:51.8]} 6. Bxb5 {[%clk 0:04:52.9]} 6... Qb6 {[%clk
0:04:47.1]} 7. Ba4 {[%clk 0:04:42.8]} 7... Qa6 {[%clk 0:04:40.7]} 8. Bc2 {[%clk
0:04:37.8]} 8... Nf6 {[%clk 0:04:37.9]} 9. Bd3 {[%clk 0:04:24.3]} 9... Qd6
{[%clk 0:04:35.4]} 10. O-O {[%clk 0:04:15.8]} 10... Qxd5 {[%clk 0:04:34.3]} 11.
Bf4 {[%clk 0:04:10.1]} 11... e6 {[%clk 0:04:31.4]} 12. Na3 {[%clk 0:04:08.2]}
12... Qc6 {[%clk 0:04:21.4]} 13. Bb5 {[%clk 0:03:50.7]} 13... Qc8 {[%clk
0:04:15.5]} 14. Qe2 {[%clk 0:03:39.1]} 14... Be7 {[%clk 0:04:14]} 15. Nc4 {[%clk
0:03:28.9]} 15... O-O {[%clk 0:04:07.9]} 16. Bd6 {[%clk 0:03:07]} 16... Re8
{[%clk 0:03:56.8]} 17. Rad1 {[%clk 0:02:52.7]} 17... a6 {[%clk 0:03:53.2]} 18.
Ba4 {[%clk 0:02:48]} 18... Qd8 {[%clk 0:03:46.4]} 19. Qe3 {[%clk 0:02:36.1]}
19... Bd5 {[%clk 0:03:43.1]} 20. Qxc5 {[%clk 0:01:35.2]} 20... Ne4 {[%clk
0:03:39.8]} 21. Bxe7 {[%clk 0:01:26.5]} 21... Nxc5 {[%clk 0:03:32.5]} 22. Bxd8
{[%clk 0:01:25.1]} 22... Nxa4 {[%clk 0:03:30.9]} 23. Nd6 {[%clk 0:00:53.5]}
23... Rxd8 {[%clk 0:03:26.7]} 24. b3 {[%clk 0:00:51.5]} 24... Nxc3 {[%clk
0:03:24.1]} 25. Rd3 {[%clk 0:00:50.7]} 25... Ne2+ {[%clk 0:03:21.4]} 26. Kh1
{[%clk 0:00:48.7]} 26... Nf4 {[%clk 0:03:20.7]} 27. Rd2 {[%clk 0:00:42.5]} 27...
Bxf3 {[%clk 0:03:18.4]} 28. gxf3 {[%clk 0:00:41.7]} 28... Nc6 {[%clk 0:03:17.7]}
29. Rc1 {[%clk 0:00:37.2]} 29... h6 {[%clk 0:03:15.9]} 30. a3 {[%clk 0:00:36]}
30... g5 {[%clk 0:03:11.9]} 31. b4 {[%clk 0:00:34.8]} 31... Kg7 {[%clk
0:03:10.7]} 32. Kg1 {[%clk 0:00:32.8]} 32... Rab8 {[%clk 0:03:08.3]} 0-1

[Event "Live Chess"]
[Site "Chess.com"]
[Date "2023.05.20"]
[Round "-"]
[White "sup3rm0nk3y"]
[Black "chessfiction"]
[Result "0-1"]
[WhiteElo "1320"]
[BlackElo "2421"]
[TimeControl "300"]
[EndTime "12:55:57 PDT"]
[Termination "chessfiction won by checkmate"]

1. e4 {[%clk 0:04:58.7]} 1... d5 {[%clk 0:04:57.6]} 2. exd5 {[%clk 0:04:57.5]}
2... c6 {[%clk 0:04:56.4]} 3. dxc6 {[%clk 0:04:56]} 3... e5 {[%clk 0:04:56]} 4.
cxb7 {[%clk 0:04:54.4]} 4... Bxb7 {[%clk 0:04:55.9]} 5. Bb5+ {[%clk 0:04:47.6]}
5... Nc6 {[%clk 0:04:54.6]} 6. Nf3 {[%clk 0:04:41.4]} 6... Bc5 {[%clk
0:04:54.1]} 7. Nxe5 {[%clk 0:04:35.7]} 7... Qd4 {[%clk 0:04:51.9]} 8. O-O {[%clk
0:04:05.3]} 8... Ne7 {[%clk 0:04:45]} 9. Nxc6 {[%clk 0:04:00]} 9... Nxc6 {[%clk
0:04:42.3]} 10. Re1+ {[%clk 0:03:51]} 10... Kf8 {[%clk 0:04:39.4]} 11. c3 {[%clk
0:03:46.9]} 11... Qxf2+ {[%clk 0:04:37.9]} 12. Kh1 {[%clk 0:03:45]} 12... Nd4
{[%clk 0:04:31.5]} 13. Rg1 {[%clk 0:02:44.9]} 13... Nxb5 {[%clk 0:04:28.3]} 14.
d4 {[%clk 0:02:38.3]} 14... Bd6 {[%clk 0:04:23.8]} 15. Qf1 {[%clk 0:02:29.7]}
15... Qh4 {[%clk 0:04:20.2]} 16. h3 {[%clk 0:02:17.1]} 16... Qxh3# {[%clk
0:04:19.2]} 0-1

[Event "Live Chess"]
[Site "Chess.com"]
[Date "2023.05.20"]
[Round "-"]
[White "Fazer180"]
[Black "therealab0ne"]
[Result "1-0"]
[WhiteElo "1749"]
[BlackElo "701"]
[TimeControl "300"]
[EndTime "12:56:04 PDT"]
[Termination "Fazer180 won by resignation"]

1. e4 {[%clk 0:04:59.4]} 1... c5 {[%clk 0:04:55.1]} 2. Nf3 {[%clk 0:04:58.2]}
2... Nc6 {[%clk 0:04:52.8]} 3. d4 {[%clk 0:04:58.1]} 3... cxd4 {[%clk
0:04:51.8]} 4. Nxd4 {[%clk 0:04:58]} 4... Nf6 {[%clk 0:04:50.4]} 5. Nc3 {[%clk
0:04:57.2]} 5... d6 {[%clk 0:04:49.6]} 6. Be3 {[%clk 0:04:53.2]} 6... g6 {[%clk
0:04:42.6]} 7. Bb5 {[%clk 0:04:46.7]} 7... Qc7 {[%clk 0:04:25.5]} 8. f3 {[%clk
0:04:37.2]} 8... Bg7 {[%clk 0:03:59.5]} 9. Nd5 {[%clk 0:04:36.2]} 9... Qd7
{[%clk 0:03:10.4]} 10. Nb4 {[%clk 0:04:30.2]} 10... O-O {[%clk 0:02:53.1]} 11.
Nbxc6 {[%clk 0:04:27.4]} 11... bxc6 {[%clk 0:02:51.9]} 12. Bxc6 {[%clk
0:04:26.4]} 12... Qd8 {[%clk 0:02:44.7]} 13. Bxa8 {[%clk 0:04:24.5]} 13... e5
{[%clk 0:02:37.8]} 14. Nb3 {[%clk 0:04:15.3]} 14... Be6 {[%clk 0:02:35.7]} 15.
Bd5 {[%clk 0:04:12.4]} 15... Bxd5 {[%clk 0:02:34.3]} 16. exd5 {[%clk 0:04:12.3]}
16... Nxd5 {[%clk 0:02:31.4]} 17. Qxd5 {[%clk 0:04:08.4]} 1-0

[Event "Live Chess"]
[Site "Chess.com"]
[Date "2023.05.20"]
[Round "-"]
[White "boilerboy1"]
[Black "Ferrarifan27"]
[Result "0-1"]
[WhiteElo "1050"]
[BlackElo "2059"]
[TimeControl "300"]
[EndTime "12:56:10 PDT"]
[Termination "Ferrarifan27 won on time"]

1. e4 {[%clk 0:04:56.4]} 1... e5 {[%clk 0:04:59]} 2. Nf3 {[%clk 0:04:53.9]} 2...
Nc6 {[%clk 0:04:58.4]} 3. Nc3 {[%clk 0:04:52]} 3... Nf6 {[%clk 0:04:56.2]} 4.
Be2 {[%clk 0:04:50.2]} 4... Bc5 {[%clk 0:04:55.2]} 5. Nxe5 {[%clk 0:04:45.1]}
5... Nxe5 {[%clk 0:04:46.3]} 6. d4 {[%clk 0:04:42.5]} 6... Bb4 {[%clk 0:04:43]}
7. dxe5 {[%clk 0:04:40.5]} 7... Nxe4 {[%clk 0:04:42.3]} 8. O-O {[%clk
0:04:35.2]} 8... Bxc3 {[%clk 0:04:40]} 9. bxc3 {[%clk 0:04:32.1]} 9... Nxc3
{[%clk 0:04:39.1]} 10. Qd3 {[%clk 0:04:29.8]} 10... Nxe2+ {[%clk 0:04:38.1]} 11.
Qxe2 {[%clk 0:04:27]} 11... O-O {[%clk 0:04:37]} 12. c3 {[%clk 0:04:24.6]} 12...
d5 {[%clk 0:04:34.9]} 13. Bf4 {[%clk 0:04:17.6]} 13... Be6 {[%clk 0:04:31.4]}
14. Qe3 {[%clk 0:04:10.8]} 14... Qd7 {[%clk 0:04:26.8]} 15. Qd4 {[%clk
0:04:06.4]} 15... Qc6 {[%clk 0:04:22.8]} 16. a3 {[%clk 0:04:02.2]} 16... a5
{[%clk 0:04:20.9]} 17. Rfe1 {[%clk 0:03:52.3]} 17... a4 {[%clk 0:04:18.1]} 18.
Rab1 {[%clk 0:03:41.7]} 18... Ra5 {[%clk 0:04:16.4]} 19. Rb4 {[%clk 0:03:38.4]}
19... Rfa8 {[%clk 0:04:12.1]} 20. Reb1 {[%clk 0:03:24.2]} 20... b6 {[%clk
0:04:10.3]} 21. h3 {[%clk 0:03:04.1]} 21... Rc5 {[%clk 0:04:07.4]} 22. Rc1
{[%clk 0:02:55.7]} 22... b5 {[%clk 0:03:55.4]} 23. Be3 {[%clk 0:02:41.8]} 23...
Rc4 {[%clk 0:03:52.6]} 24. Rxc4 {[%clk 0:02:31]} 24... dxc4 {[%clk 0:03:47]} 25.
Qc5 {[%clk 0:02:28.7]} 25... Qd7 {[%clk 0:03:42]} 26. Bd4 {[%clk 0:02:22.5]}
26... c6 {[%clk 0:03:40.3]} 27. Be3 {[%clk 0:01:23.5]} 27... Bd5 {[%clk
0:03:34.6]} 28. Bf4 {[%clk 0:01:16.3]} 28... Qf5 {[%clk 0:03:30.9]} 29. Bg3
{[%clk 0:01:13.4]} 29... Qe4 {[%clk 0:03:25]} 30. f3 {[%clk 0:01:08.6]} 30...
Qg6 {[%clk 0:03:13.8]} 31. Qf2 {[%clk 0:00:59.3]} 31... h5 {[%clk 0:03:07.4]}
32. h4 {[%clk 0:00:56.1]} 32... Re8 {[%clk 0:03:03]} 33. Re1 {[%clk 0:00:49.9]}
33... Qd3 {[%clk 0:02:58.1]} 34. Qe3 {[%clk 0:00:27.6]} 34... Qc2 {[%clk
0:02:52.2]} 35. Qf2 {[%clk 0:00:09.4]} 35... Qxc3 {[%clk 0:02:49.3]} 0-1

[Event "Live Chess"]
[Site "Chess.com"]
[Date "2023.05.20"]
[Round "-"]
[White "LanceMaster23"]
[Black "JackRudd"]
[Result "0-1"]
[WhiteElo "1872"]
[BlackElo "2463"]
[TimeControl "300"]
[EndTime "12:56:13 PDT"]
[Termination "JackRudd won by resignation"]

1. Nf3 {[%clk 0:04:59]} 1... Nf6 {[%clk 0:04:58.1]} 2. d4 {[%clk 0:04:58.5]}
2... g6 {[%clk 0:04:57]} 3. Bf4 {[%clk 0:04:58]} 3... Bg7 {[%clk 0:04:56.1]} 4.
e3 {[%clk 0:04:57.4]} 4... O-O {[%clk 0:04:55.1]} 5. h3 {[%clk 0:04:56.8]} 5...
d6 {[%clk 0:04:54.3]} 6. Be2 {[%clk 0:04:56.3]} 6... Nbd7 {[%clk 0:04:50.4]} 7.
Nbd2 {[%clk 0:04:54.5]} 7... b6 {[%clk 0:04:48.3]} 8. c3 {[%clk 0:04:54]} 8...
Bb7 {[%clk 0:04:47.6]} 9. O-O {[%clk 0:04:53.4]} 9... c5 {[%clk 0:04:46.7]} 10.
Re1 {[%clk 0:04:52.1]} 10... Ne4 {[%clk 0:04:46]} 11. Nxe4 {[%clk 0:04:49]}
11... Bxe4 {[%clk 0:04:44.9]} 12. Nd2 {[%clk 0:04:48.6]} 12... Bb7 {[%clk
0:04:43.6]} 13. Qb3 {[%clk 0:04:47.1]} 13... e5 {[%clk 0:04:40]} 14. dxe5 {[%clk
0:04:41.9]} 14... dxe5 {[%clk 0:04:38.9]} 15. Bg3 {[%clk 0:04:41]} 15... h5
{[%clk 0:04:33.8]} 16. Rad1 {[%clk 0:04:38.2]} 16... h4 {[%clk 0:04:32.4]} 17.
Bh2 {[%clk 0:04:36.9]} 17... Qe7 {[%clk 0:04:26.6]} 18. Bf3 {[%clk 0:04:04.3]}
18... Bxf3 {[%clk 0:04:17.9]} 19. Nxf3 {[%clk 0:04:04.2]} 19... Rad8 {[%clk
0:04:15.1]} 20. Rd5 {[%clk 0:03:39.7]} 20... b5 {[%clk 0:04:03.1]} 21. Qxb5
{[%clk 0:03:20.3]} 21... Nb6 {[%clk 0:03:55.1]} 22. Rxc5 {[%clk 0:03:04.5]}
22... e4 {[%clk 0:03:43.6]} 23. Ne5 {[%clk 0:02:48.6]} 23... Rd2 {[%clk
0:03:41.3]} 24. Nc6 {[%clk 0:02:22.6]} 24... Qf6 {[%clk 0:03:30.9]} 25. Rf1
{[%clk 0:02:22.1]} 25... Bh6 {[%clk 0:03:19.9]} 26. Nb4 {[%clk 0:01:55.5]} 26...
Rxf2 {[%clk 0:03:11.3]} 27. Rxf2 {[%clk 0:01:18.8]} 27... Bxe3 {[%clk 0:03:06]}
28. Bf4 {[%clk 0:01:17.4]} 28... Qxf4 {[%clk 0:03:01.9]} 29. Qe2 {[%clk
0:00:22]} 29... Bxc5 {[%clk 0:03:00]} 0-1

[Event "Live Chess"]
[Site "Chess.com"]
[Date "2023.05.20"]
[Round "-"]
[White "Stanbad1"]
[Black "LiamBellwood"]
[Result "1/2-1/2"]
[WhiteElo "2412"]
[BlackElo "2067"]
[TimeControl "300"]
[EndTime "12:56:20 PDT"]
[Termination "Game drawn - timeout vs insufficient material"]

1. d4 {[%clk 0:04:57.6]} 1... e6 {[%clk 0:04:59.1]} 2. Nc3 {[%clk 0:04:57.1]}
2... Bb4 {[%clk 0:04:58.4]} 3. Bf4 {[%clk 0:04:56.3]} 3... f5 {[%clk 0:04:57.8]}
4. g4 {[%clk 0:04:53]} 4... g5 {[%clk 0:04:41.7]} 5. Be5 {[%clk 0:04:50.5]} 5...
Nf6 {[%clk 0:04:38.8]} 6. gxf5 {[%clk 0:04:49.5]} 6... exf5 {[%clk 0:04:33]} 7.
a3 {[%clk 0:04:47.8]} 7... Bxc3+ {[%clk 0:04:29.9]} 8. bxc3 {[%clk 0:04:47.7]}
8... d6 {[%clk 0:04:29.6]} 9. Bxf6 {[%clk 0:04:45.3]} 9... Qxf6 {[%clk
0:04:29.5]} 10. Bg2 {[%clk 0:04:44.5]} 10... O-O {[%clk 0:04:21.7]} 11. Nf3
{[%clk 0:04:42.4]} 11... g4 {[%clk 0:04:16.9]} 12. Nd2 {[%clk 0:04:40.8]} 12...
c6 {[%clk 0:04:04.3]} 13. O-O {[%clk 0:04:38.3]} 13... Kh8 {[%clk 0:03:58.7]}
14. f3 {[%clk 0:04:36.6]} 14... Qh4 {[%clk 0:03:37.6]} 15. fxg4 {[%clk
0:04:33.4]} 15... Qxg4 {[%clk 0:03:36.7]} 16. e4 {[%clk 0:04:31.9]} 16... Qg6
{[%clk 0:03:22.3]} 17. exf5 {[%clk 0:04:28.8]} 17... Bxf5 {[%clk 0:03:19.3]} 18.
Kh1 {[%clk 0:04:27.5]} 18... Nd7 {[%clk 0:03:16.3]} 19. Rg1 {[%clk 0:04:12.6]}
19... Bxc2 {[%clk 0:02:58.3]} 20. Qe1 {[%clk 0:04:08.7]} 20... Qd3 {[%clk
0:02:19.6]} 21. Rc1 {[%clk 0:03:48.1]} 21... Rae8 {[%clk 0:02:17.9]} 22. Nf3
{[%clk 0:03:03]} 22... Rxe1 {[%clk 0:02:08.1]} 23. Nxe1 {[%clk 0:03:02.9]} 23...
Qxc3 {[%clk 0:01:43.7]} 24. Nxc2 {[%clk 0:02:57.9]} 24... Qd3 {[%clk 0:01:36.4]}
25. d5 {[%clk 0:02:54.6]} 25... c5 {[%clk 0:01:30.3]} 26. Rgd1 {[%clk
0:02:48.9]} 26... Qe2 {[%clk 0:01:23.1]} 27. Re1 {[%clk 0:02:47.5]} 27... Qd3
{[%clk 0:01:21.7]} 28. Be4 {[%clk 0:02:44.3]} 28... Qh3 {[%clk 0:01:15.4]} 29.
Ne3 {[%clk 0:02:41.8]} 29... Ne5 {[%clk 0:01:10.9]} 30. Bg2 {[%clk 0:02:40.2]}
30... Qh5 {[%clk 0:00:58.8]} 31. Rf1 {[%clk 0:02:38]} 31... Rxf1+ {[%clk
0:00:56.9]} 32. Rxf1 {[%clk 0:02:37.9]} 32... Ng4 {[%clk 0:00:47.3]} 33. Nxg4
{[%clk 0:02:28]} 33... Qxg4 {[%clk 0:00:47.2]} 34. h3 {[%clk 0:02:26.5]} 34...
Qd4 {[%clk 0:00:42.3]} 35. Rf8+ {[%clk 0:02:24.2]} 35... Kg7 {[%clk 0:00:41.7]}
36. Rb8 {[%clk 0:02:23.4]} 36... b6 {[%clk 0:00:38.5]} 37. Rb7+ {[%clk 0:02:22]}
37... Kg6 {[%clk 0:00:37.6]} 38. Rxa7 {[%clk 0:02:21.1]} 38... b5 {[%clk
0:00:35.9]} 39. Ra6 {[%clk 0:02:19.4]} 39... Qa1+ {[%clk 0:00:31.4]} 40. Kh2
{[%clk 0:02:17.8]} 40... Qe5+ {[%clk 0:00:31.1]} 41. Kh1 {[%clk 0:02:16.4]}
41... Kf5 {[%clk 0:00:24]} 42. Ra8 {[%clk 0:02:12.8]} 42... Qa1+ {[%clk
0:00:20.2]} 43. Kh2 {[%clk 0:02:10.8]} 43... b4 {[%clk 0:00:19.6]} 44. Rf8+
{[%clk 0:02:08.3]} 44... Ke5 {[%clk 0:00:19.1]} 45. axb4 {[%clk 0:02:07]} 45...
cxb4 {[%clk 0:00:18]} 46. Re8+ {[%clk 0:02:06.4]} 46... Kd4 {[%clk 0:00:17.2]}
47. Re4+ {[%clk 0:02:05.4]} 47... Kc5 {[%clk 0:00:16.6]} 48. Re3 {[%clk
0:02:03]} 48... b3 {[%clk 0:00:16.2]} 49. Rxb3 {[%clk 0:02:01.7]} 49... Qe5+
{[%clk 0:00:14.5]} 50. Rg3 {[%clk 0:01:58.7]} 50... h5 {[%clk 0:00:14.1]} 51. h4
{[%clk 0:01:57.9]} 51... Qf4 {[%clk 0:00:13.6]} 52. Kh3 {[%clk 0:01:55.7]} 52...
Qf5+ {[%clk 0:00:13.3]} 53. Kh2 {[%clk 0:01:55.1]} 53... Qf4 {[%clk 0:00:12.8]}
54. Bh3 {[%clk 0:01:54]} 54... Qf2+ {[%clk 0:00:11.7]} 55. Rg2 {[%clk
0:01:53.4]} 55... Qf4+ {[%clk 0:00:11.3]} 56. Kh1 {[%clk 0:01:51.8]} 56... Qxh4
{[%clk 0:00:10.9]} 57. Rc2+ {[%clk 0:01:49]} 57... Kd4 {[%clk 0:00:09.5]} 58.
Rh2 {[%clk 0:01:43.6]} 58... Qe1+ {[%clk 0:00:08.7]} 59. Kg2 {[%clk 0:01:43.1]}
59... Qe4+ {[%clk 0:00:08]} 60. Kg1 {[%clk 0:01:42]} 60... Qe3+ {[%clk 0:00:07]}
61. Kf1 {[%clk 0:01:40.3]} 61... Kxd5 {[%clk 0:00:06.3]} 62. Rg2 {[%clk
0:01:39.3]} 62... Ke4 {[%clk 0:00:05.6]} 63. Bc8 {[%clk 0:01:37]} 63... d5
{[%clk 0:00:05.1]} 64. Re2 {[%clk 0:01:35.1]} 64... d4 {[%clk 0:00:04.2]} 65.
Rxe3+ {[%clk 0:01:34.2]} 65... Kxe3 {[%clk 0:00:04.1]} 66. Ba6 {[%clk
0:01:33.2]} 66... d3 {[%clk 0:00:03.4]} 67. Ke1 {[%clk 0:01:32.8]} 67... d2+
{[%clk 0:00:02.9]} 68. Kd1 {[%clk 0:01:32.4]} 68... h4 {[%clk 0:00:02.8]} 69.
Bc8 {[%clk 0:01:30.6]} 69... h3 {[%clk 0:00:02.4]} 70. Bxh3 {[%clk 0:01:29.7]}
70... Kd3 {[%clk 0:00:02]} 71. Bc8 {[%clk 0:01:29.6]} 71... Ke3 {[%clk
0:00:01.9]} 72. Bb7 {[%clk 0:01:29.4]} 72... Kd3 {[%clk 0:00:01.7]} 73. Ba6+
{[%clk 0:01:29.3]} 73... Ke3 {[%clk 0:00:01.6]} 74. Bb5 {[%clk 0:01:28.8]} 74...
Kd4 {[%clk 0:00:01.5]} 75. Bc6 {[%clk 0:01:28.6]} 75... Ke3 {[%clk 0:00:01.4]}
76. Bd7 {[%clk 0:01:28.5]} 76... Kd4 {[%clk 0:00:01.3]} 77. Be8 {[%clk
0:01:28.4]} 77... Ke3 {[%clk 0:00:01.2]} 78. Bf7 {[%clk 0:01:28.3]} 78... Kd4
{[%clk 0:00:01.1]} 79. Bg6 {[%clk 0:01:28.1]} 79... Ke3 {[%clk 0:00:01]} 80. Kc2
{[%clk 0:01:27.4]} 80... Kd4 {[%clk 0:00:00.9]} 81. Bh5 {[%clk 0:01:26.9]} 81...
Ke3 {[%clk 0:00:00.8]} 82. Bd1 {[%clk 0:01:26.7]} 82... Kd4 {[%clk 0:00:00.7]}
83. Kb3 {[%clk 0:01:25.4]} 83... Ke3 {[%clk 0:00:00.2]} 84. Kc3 {[%clk
0:01:25.3]} 1/2-1/2